Cogmind - Beta 15 @@@ ROGUE MODE // 2025.10.19 @ 22:29:21 Player: DietSnapple Result: Destroyed by exploding Fusion Modulator Performance ------------- Evolutions (0) 0 Regions Visited (1) 200 Robots Destroyed (12) 60 Value Destroyed (180) 180 Prototype IDs (0) 0 Alien Tech Used (0) 0 Bonus (0) 0 TOTAL SCORE: 440 Bonus ------- None Cogmind --------- Core Integrity 0/250 Matter 41/300 Energy 100/100 System Corruption 0% Temperature Cool (36) Movement Walking (120) Location -10/Materials Parts ------- > --- POWER (1) -------- (None) > --- PROPULSION (2) --- Aluminum Leg > --- UTILITY (2) ------ Medium Storage Unit > --- WEAPON (2) ------- (None) > --- INVENTORY (10) --- Ion Engine Ion Engine Aluminum Leg Large Storage Unit Weight Redist. System Light Cannon Light Cannon Light Cannon Grenade Launcher Grenade Launcher Peak State ------------ > --- POWER ------------ Ion Engine > --- PROPULSION ------- Aluminum Leg Aluminum Leg > --- UTILITY ---------- Medium Storage Unit Seismic Detector > --- WEAPON ----------- Assault Rifle Assault Rifle > --- INVENTORY -------- Ion Engine Ion Engine Small Storage Unit Large Storage Unit Weight Redist. System EM Pulse Gun Small Laser Grenade Launcher Grenade Launcher [Rating: 8] Favorites ----------- Power Ion Engine Engine Ion Engine Propulsion Aluminum Leg Leg Aluminum Leg Utility Medium Storage Unit Device Seismic Detector Storage Medium Storage Unit Weapon Assault Rifle Ballistic Gun Assault Rifle Build | -11 -10 ------- Run | Yrd Mat Slots Evolved . | . . Power . | . . Propulsion . | . . Utility . | . . Weapon . | . . Parts Attached 10 | 6 4 Power 1 | 1 . Engine 1 | 1 . Core . | . . Reactor . | . . Propulsion 3 | 2 1 Treads . | . . Leg 3 | 2 1 Wheel . | . . Hover . | . . Flight . | . . Utility 3 | 1 2 Device 1 | . 1 Storage 2 | 1 1 Processor . | . . Hackware . | . . Protection . | . . Artifact . | . . Weapon 3 | 2 1 Energy Gun . | . . Energy Cannon . | . . Ballistic Gun 3 | 2 1 Ballistic Cannon . | . . Launcher . | . . Special Weapon . | . . Impact Weapon . | . . Slashing Weapon . | . . Piercing Weapon . | . . Special Melee Weapon . | . . Unidentified Prototypes . | . . Parts Lost 5 | . 5 Power 1 | . 1 Propulsion 1 | . 1 Utility 1 | . 1 Weapon 2 | . 2 Highest Loss Streak 5 | . 5 To Critical Strikes . | . . Average Backups 8 | 3 8 Power 1 | . 1 Propulsion 1 | 2 1 Utility 1 | . 1 Weapon 3 | . 3 Tool/Special . | . . Unused Backups 16 | . 16 Power 2 | . 2 Propulsion 5 | . 5 Utility 2 | . 2 Weapon 7 | . 7 Tool/Special . | . . Average Slot Usage (%) 93 | . 93 Engine 14 | . 14 Leg 28 | . 28 Device 8 | . 8 Storage 14 | . 14 Ballistic Gun 28 | . 28 Peak Build Rating 8 | 6 8 Average Rating 6 | 3 7 On Entrance 3 | . 6 Naked Turns . | . . Heaviest Build 24 | 14 24 Greatest Support 20 | 20 20 Greatest Overweight (x) 1 | . 1 Average Overweight (x) . | . . Largest Inventory Capacity 10 | 8 10 Average Capacity 9 | 6 9 Most Carried 10 | 6 10 Average Carried 8 | 3 8 Final Capacity 10 | 8 10 Final Carried 10 | 6 10 Class Distribution -------------------- 100% | Mutant Dominant Class ---------------- Mutant | -10/Materials Resources | -11 -10 ----------- Run | Yrd Mat Matter Collected 346 | 212 134 Remotely . | . . Salvage Created 331 | . 331 Parts 28 | . 28 Haulers Intercepted 2 | . 2 Recyclers Shooed . | . . Parts Field Recycled . | . . Retrieved Matter . | . . Parts Self-Destructed . | . . Prevented . | . . Kills | -11 -10 ------- Run | Yrd Mat Combat Hostiles Destroyed 9 | . 9 Guns 9 | . 9 Classes Destroyed 4 | . 4 Worker 1 | . 1 Hauler 2 | . 2 Swarmer 6 | . 6 Grunt 3 | . 3 Best Kill Streak 3 | . 3 Combat Bots Only 3 | . 3 Max Kills in Single Turn 1 | . 1 Gunslinging . | . . Exploded . | . . Melee . | . . Uniques/NPCs Destroyed . | . . Combat | -11 -10 -------- Run | Yrd Mat Hostile Shots Fired 80 | . 80 Missed 26 | . 26 Hits 54 | . 54 Projectile 54 | . 54 Critical Strikes 1 | . 1 Damage Taken 787 | . 787 Core 263 | . 263 Absorbed by Shields . | . . Core Remaining (%) 100 | 100 . Volleys Fired 54 | . 54 Largest 2 | . 2 Hottest 40 | . 40 Shots Fired 108 | . 108 Gun 108 | . 108 Cannon . | . . Launcher . | . . Special . | . . Kinetic 108 | . 108 Thermal . | . . Explosive . | . . Electromagnetic . | . . Robot Hit Streak 16 | . 16 Robot Miss Streak 7 | . 7 Penetration Max . | . . Secondary Targets . | . . Shots Hit Robots 55 | . 55 Core Hits 17 | . 17 Critical Kills . | . . Critical Parts Destroyed . | . . Critical Strikes . | . . Melee Attacks . | . . Impact . | . . Slashing . | . . Piercing . | . . Sneak Attacks . | . . Combat Hostiles . | . . Follow-up Attacks . | . . Damage Inflicted 753 | . 753 Guns 729 | . 729 Cannons . | . . Explosions . | . . Melee . | . . Ramming 24 | . 24 Kinetic 729 | . 729 Thermal . | . . Explosive . | . . Electromagnetic . | . . Impact . | . . Slashing . | . . Piercing . | . . Highest Corruption . | . . Average Corruption . | . . Corruption Purged . | . . Corruption Blocked . | . . Overload Shots . | . . Overflow Damage . | . . Projectiles . | . . Explosions . | . . Melee . | . . Knockbacks 1 | . 1 Impact 1 | . 1 Kinetic . | . . Secondary . | . . Self-Inflicted Damage . | . . Shots . | . . Rammed . | . . Targets Rammed 4 | . 4 Kicked 4 | . 4 Crushed . | . . Highest Temperature 2 | . 2 Average Temperature 2 | . 2 Received Heat Transfer 132 | . 132 Siege Activations . | . . Martial Activations . | . . Shielding Activations . | . . Robots Disrupted . | . . Combat Hostiles . | . . Robots Corrupted . | . . Combat Hostiles . | . . Parts Fried . | . . Impact Corruptions . | . . Robots Melted . | . . Combat Hostiles . | . . Parts Melted . | . . Heat Transferred . | . . Parts Sabotaged . | . . Parts Stolen . | . . Parts Stripped . | . . Power Chain Reactions . | . . Alert | -11 -10 ------- Run | Yrd Mat Maximum Alert Level . | . . Low Security (%) 100 | 100 100 Level 1 . | . . Level 2 . | . . Level 3 . | . . Level 4 . | . . Level 5 . | . . High Security . | . . Max Security . | . . Peak Influence 63 | . 63 Initial . | . . Average 14 | . 15 Influence Increases 265 | . 265 Destroy 0b10 Robot/C 180 | . 180 Destroy 0b10 Robot/NC 15 | . 15 Destroy Leader 44 | . 44 Successful Hack 10 | . 10 Destroy Structure 1 | . 1 Lose Combat Pursuer 15 | . 15 Influence Decreases 255 | . 255 Time Decay 205 | . 205 Lost Part 50 | . 50 Squads Dispatched 1 | . 1 Investigation . | . . Extermination . | . . Reinforcement 1 | . 1 Assault . | . . Garrison . | . . Intercept . | . . Searches Triggered . | . . Construction Impeded . | . . Haulers Reinforced . | . . Active Scanning Responses . | . . Cargo Convoy Interrupts . | . . Stealth | -11 -10 --------- Run | Yrd Mat Distress Signals 2 | . 2 Communications Jammed . | . . Distress Signals . | . . Times Spotted 18 | . 18 Peak Tracking Total 5 | . 5 Tactical Retreats 1 | . 1 Traps | -11 -10 ------- Run | Yrd Mat Traps Triggered 2 | . 2 Indirectly . | . . Trap Hack Attempts . | . . Triggered . | . . Disarmed . | . . Reprogrammed . | . . Reused . | . . Traps Extracted . | . . Installed . | . . Triggered . | . . Machines | -11 -10 ---------- Run | Yrd Mat Machines Disabled . | . . Max in Single Turn . | . . Machines Repaired . | . . Machines Dismantled . | . . Machines Sabotaged . | . . Overloaded Fab Kills . | . . Hacking | -11 -10 --------- Run | Yrd Mat Machines Accessed 4 | . 4 Terminals 2 | . 2 Fabricators . | . . Repair Stations . | . . Recycling Units 2 | . 2 Scanalyzers . | . . Garrison Access . | . . Total Hacks 8 | . 8 Successful 6 | . 6 Failed 2 | . 2 Catastrophic . | . . Database Lockouts . | . . Manual 2 | . 2 Terminals 4 | . 4 Fabricators . | . . Repair Stations . | . . Recycling Units 4 | . 4 Scanalyzers . | . . Garrison Access . | . . Terminal Hacks 3 | . 3 Locate Traps 1 | . 1 Hauler Manifests 1 | . 1 Zone Layout 1 | . 1 Fabricator Hacks . | . . Repair Station Hacks . | . . Recycling Unit Hacks 2 | . 2 Report Inventory 2 | . 2 Scanalyzer . | . . Garrison Access Hacks . | . . Unauthorized Hacks 1 | . 1 Terminals 1 | . 1 Botnet 1 | . 1 Fabricators . | . . Repair Stations . | . . Recycling Units . | . . Scanalyzers . | . . Garrison Access . | . . Data Cores Recovered . | . . Used . | . . Hacking Detections 2 | . 2 Full Trace Events . | . . Feedback Events . | . . Feedback Blocked . | . . Robot Schematics Acquired . | . . Robots Built . | . . Authchips . | . . Time . | . . Total Robot Build Rating . | . . Part Schematics Acquired . | . . Parts Built . | . . Authchips . | . . Time . | . . Total Part Build Rating . | . . Parts Repaired . | . . Time . | . . Parts Recycled . | . . Recycled Matter . | . . Retrieved Matter . | . . Retrieved Components . | . . Parts Scanalyzed . | . . Part Schematics Acquired . | . . Parts Damaged . | . . Bothacking | -11 -10 ------------ Run | Yrd Mat Used RIF Installer . | . . Robots Hacked . | . . Non-combat . | . . Combat . | . . Robot Hacks Applied . | . . Relay Couplers Released . | . . Fabnet Peak Effective % . | . . Robots Rewired . | . . Allies Hacked . | . . Hacks Repelled . | . . Allies | -11 -10 -------- Run | Yrd Mat Total Allies . | . . Largest Group . | . . Highest-Rated Group . | . . Highest-Rated Ally . | . . Total Orders . | . . Ally Attacks . | . . Total Damage . | . . Kills . | . . Allies Corrupted . | . . Allies Melted . | . . Intel | -11 -10 ------- Run | Yrd Mat Active Infowar (turns) 478 | . 478 Seismic 478 | . 478 Robot Analysis Total . | . . Derelict Logs Recovered . | . . Drone Launches . | . . Drone Recoveries . | . . Exploration | -11 -10 ------------- Run | Yrd Mat Turns Passed 926 | 96 830 Spaces Moved 585 | 76 509 Core 13 | 13 . Treads . | . . Legs 572 | 63 509 Wheels . | . . Hover . | . . Flight . | . . Fastest Speed 50 | 50 120 Average Speed 118 | 108 120 Slowest Speed 190 | 120 190 Overloaded Moves . | . . Propulsion Burnouts . | . . Robots Hopped . | . . Potential Cave-ins . | . . Cave-ins Triggered . | . . Exploration Rate (%) 38 | 4 72 Regions Visited 1 Branch Regions . Pre-discovered Areas . | . . Known Exits Taken . | . . Unknown Exits Taken 1 | 1 . Scrap Searched . | . . Spaces Dug . | . . Terrain Destroyed . | . . Melee . | . . Projectile . | . . AOE . | . . Terrain Rammed . | . . Walls Destroyed . | . . Machines Disabled . | . . Actions | -11 -10 --------- Run | Yrd Mat Total 708 | 87 621 Wait 26 | . 26 Move 584 | 75 509 Hop . | . . Pick Up 17 | 6 11 Fast Attach 10 | 6 4 Attach . | . . Detach 1 | . 1 Swap 2 | . 2 Drop 10 | . 10 Fire 54 | . 54 Melee . | . . Ram . | . . Kick 4 | . 4 Crush . | . . Escape Stasis . | . . Rewire . | . . Trap . | . . Miscellaneous . | . . Route ------- -11/Scrapyard -10/Materials (discovered 4 exits: [*Mat x2] / [*Min] / [*Sub]) History --------- Turn | Location | Event 5 | -11/Scrapyard | Discovered new exit (range 16) 97 | -11/Scrapyard | Entered Materials 281 | -10/Materials | Discovered new exit (range 6) 303 | -10/Materials | Build established: Mutant 322 | -10/Materials | Discovered new exit (range 14) 496 | -10/Materials | Discovered new exit (range 13) 638 | -10/Materials | Discovered new exit (range 16) 927 | -10/Materials | Destroyed by exploding Fusion Modulator Last Messages --------------- 00799_ M-13 Machinist repairs K-01 Serf. 00857_ G-47 Trooper destroyed. 00874_ K-01 Serf collects debris. 00879_ G-34 Mercenary destroyed. 00879_ K-01 Serf collects debris. 00884_ Acquired Aluminum Leg. 00900_ Triggered Blade Trap. 00900_ Massive razor-sharp blades shoot up from within the floor. 00900_ Assault Rifle severed. 00901_ Acquired Assault Rifle. 00912_ U-05 Engineer lays Concrete. 00924_ G-34 Mercenary destroyed. 00927_ Fusion Modulator explodes. 00927_ Assault Rifle destroyed. 00927_ Seismic Detector destroyed. 00927_ Fusion Modulator explodes. 00927_ O-16 Technician destroyed. 00927_ Terminal disabled. 00927_ Aluminum Leg destroyed. 00927_ Ion Engine destroyed. Map ----- +----------------------------------------------------+ | ?????????????????????????????????????????????????? | | ?????????????????????????????????????????????????? | | ?????????????????????????????????????????????????? | | ?????????????????????????????????????????????????? | | ?????????????????????????????????????????????????? | | ?????????????????????????????????????????????????? | | ###??????????????????????????????????????????????? | | ""##?????????????????????????????????????????????? | | ||"##????????????????????????????????????????????? | | ""#????????????????????????????????????????????? | | #?????????????????????!!?????????????????????? | | < #???????????????? ????!]?????????????????????? | | #??????????????# ???!=?????????????????????? | | #??????????????# k??? ?????????????????????? | | #???????????""??/ ###+##########????????????? | | ###########?? ?# ????????????? | | # T #??"" # u ! #???????????? | | + #??"" # #???????????? | | # !#???" ; #???????????? | | # #???? ;! T???????????? | | #################; #???????????? | | ######! ##"" #???????????? | | # ##"T ##??????????? | | + ##"" ;#??????????? | | # #?## ????????? | | # #?# @ ????????? | | ##/######?##; ????????? | | =*=#?????#; ;#??????????? | | !#######; # ?????????? | | %= % #???????????? | | #######+#########;;; #???????????? | | #?# !!!! #???### ; #???????????? | | #?# ! #?????#### ##########???????????? | | #?# #????????# #???##<##????????????? | | #?# ! #????????# #??? #????????????? | | #?# #????????#u #### #????????????? | | #?# #????????# ^# #????????????? | | #?# #?######## ^ # ?????????????? | | #?# #?##! ! ## k # ??????????????? | | #?###########?#! !# m # ???????????????? | | #?????????????# # # ????#######?????? | | ############### # ##+####### #?????? | | #?????? | | #?????? | | #?????? | | ########## ########## #?????? | | ?######### #???# ##?????? | | ?# * + #???# #??????? | | ## =### #???# " ########### ######## | | # #?# #???#% % #?????????# + | +----------------------------------------------------+ Best States ------------- Heat Dissipation 25 Energy Generation 10 Energy Capacity 250 Matter Stores 300 Matter Capacity 300 Sight Range 16 Terrain Scan Density 10 Evasion (%) 55 Item Schematics ----------------- None Robot Schematics ------------------ None Fabricated ------------ Nothing Repaired ---------- Nothing Alien Tech Used ----------------- None Achievements -------------- None Challenges ------------ None Game ------ Seed DeuteriumTrackerObliterator Manual? 0 Play Time 00:11:06 Cumulative 40.3 hours Start 2025.10.19 @ 22:05:07 End 2025.10.19 @ 22:29:21 Sessions 1 Manual Loads 0 Difficulty Rogue Special Mode None Game No. 100 Rogue 93 Adventurer 7 Explorer 0 Win Type - Total 1 Types 1/0/0/0/0/0/0/0/0/0 Lore% 14 Gallery% 32 Achievement% 32 Wizard Run 0 Options --------- Layout 0 ASCII 0 Keyboard 1 Movement Vi Keybinds 0 Fullscreen 1 Font 18/SmallcapsGlow Map View 112x50 Zoom Use 0% Tactical HUD 1 Map Filters NONE Filters NONE Steam X RUN: 3270ed1c-d964-44a3-b61d-4a2d5e93bea3